Cogmind - Beta 14 @@@ ROGUE MODE // 2024.08.28 @ 18:36:11 Player: Olafz Result: Destroyed by X-57 Shotgunner with High-powered Shotgun Performance ------------- Evolutions (2) 1000 Regions Visited (5) 1000 Robots Destroyed (25) 125 Value Destroyed (611) 611 Prototype IDs (0) 0 Alien Tech Used (0) 0 Bonus (270) 270 TOTAL SCORE: 3006 Bonus ------- Pacifist 270 Cogmind --------- Core Integrity 0/550 Matter 237/300 Energy 157/160 System Corruption 0% Temperature Cool (0) Movement Treading (166) Location -8/Materials Parts ------- > --- POWER (1) -------- Light Nuclear Core > --- PROPULSION (3) --- Light Treads Armored Treads Armored Treads > --- UTILITY (5) ------ Improved Heat Sink Large Storage Unit Targeting Computer Targeting Computer > --- WEAPON (2) ------- Heavy Assault Rifle Gauss Rifle > --- INVENTORY (15) --- Ion Engine Light Deuterium Engine Light Nuclear Core Light Treads Light Treads Improved Heat Sink Small Storage Unit Large Storage Unit High-capacity Storage Unit High-capacity Storage Unit Compact Matter Pod (112) Assault Rifle Assault Rifle Autogun Flail Peak State ------------ > --- POWER ------------ Light Nuclear Core > --- PROPULSION ------- Light Treads Armored Treads Armored Treads > --- UTILITY ---------- Improved Heat Sink Large Storage Unit Targeting Computer Targeting Computer > --- WEAPON ----------- Heavy Assault Rifle Gauss Rifle > --- INVENTORY -------- Ion Engine Light Deuterium Engine Light Nuclear Core Light Treads Improved Heat Sink Small Storage Unit Large Storage Unit High-capacity Storage Unit High-capacity Storage Unit Compact Matter Pod Assault Rifle Light Assault Rifle [Rating: 24] Favorites ----------- Power Ion Engine Engine Ion Engine Power Core Light Nuclear Core Propulsion Aluminum Leg Treads Armored Treads Leg Aluminum Leg Utility Targeting Computer Device Improved Heat Sink Storage Large Storage Unit Processor Targeting Computer Protection Hardened Light Armor Plating Weapon Light Assault Rifle Ballistic Gun Light Assault Rifle Launcher Grenade Launcher Build | -11 -10 -10 -10 -9 -8 ------- Run | Yrd Mat Min Exi Min Mat Slots Evolved 4 | . . . . . 4 Power . | . . . . . . Propulsion 1 | . . . . . 1 Utility 3 | . . . . . 3 Weapon . | . . . . . . Parts Attached 35 | 6 2 . 1 . 26 Power 5 | 1 . . . . 4 Engine 4 | 1 . . . . 3 Core 1 | . . . . . 1 Reactor . | . . . . . . Propulsion 9 | 2 . . . . 7 Treads 7 | . . . . . 7 Leg 2 | 2 . . . . . Wheel . | . . . . . . Hover . | . . . . . . Flight . | . . . . . . Utility 9 | 1 2 . . . 6 Device 3 | . . . . . 3 Storage 2 | 1 1 . . . . Processor 3 | . 1 . . . 2 Hackware . | . . . . . . Protection 1 | . . . . . 1 Artifact . | . . . . . . Weapon 12 | 2 . . 1 . 9 Energy Gun . | . . . . . . Energy Cannon . | . . . . . . Ballistic Gun 10 | 2 . . . . 8 Ballistic Cannon . | . . . . . . Launcher 2 | . . . 1 . 1 Special Weapon . | . . . . . . Impact Weapon . | . . . . . . Slashing Weapon . | . . . . . . Piercing Weapon . | . . . . . . Special Melee Weapon . | . . . . . . Unidentified Prototypes . | . . . . . . Parts Lost 17 | . . . . . 17 Power 3 | . . . . . 3 Propulsion 6 | . . . . . 6 Utility 3 | . . . . . 3 Weapon 5 | . . . . . 5 Highest Loss Streak 12 | . . . . . 12 To Critical Strikes . | . . . . . . Average Slot Usage (%) 92 | . 95 100 100 100 83 Engine 9 | . 14 14 14 14 3 Core 2 | . . . . . 4 Treads 10 | . . . . . 21 Leg 15 | . 28 28 28 28 1 Device 4 | . . . . . 10 Storage 11 | . 15 14 14 14 9 Processor 13 | . 8 14 14 14 13 Ballistic Gun 17 | . 28 28 18 14 16 Launcher 5 | . . . 9 14 . Peak Build Rating 24 | 6 7 7 7 8 24 Average Rating 13 | 4 6 7 7 7 20 On Entrance 5 | . 6 7 7 7 8 Naked Turns . | . . . . . . Heaviest Build 42 | 12 32 27 29 29 42 Greatest Support 60 | 20 20 20 20 20 60 Greatest Overweight (x) 9 | . 1 1 1 1 9 Average Overweight (x) . | . . 1 1 1 . Largest Inventory Capacity 15 | 8 15 15 15 15 15 Average Capacity 14 | 7 14 15 15 15 15 Most Carried 15 | 2 5 5 7 9 15 Average Carried 8 | 1 4 5 5 7 12 Final Capacity 15 | 8 15 15 15 15 15 Final Carried 15 | 2 5 5 7 9 15 Class Distribution -------------------- 74% | Mutant 25% | Scavenger-Mutant Dominant Class ---------------- Mutant | -10/Materials Mutant | -10/Mines Mutant | -10/Exiles Mutant | -9/Mines Scavenger-Mutant | -8/Materials Resources | -11 -10 -10 -10 -9 -8 ----------- Run | Yrd Mat Min Exi Min Mat Matter Collected 1115 | 162 . . . 100 853 Remotely . | . . . . . . Salvage Created 821 | . . . . . 821 Parts 57 | . . . . . 57 Haulers Intercepted 2 | . . . . . 2 Recyclers Shooed 1 | . . . . . 1 Parts Field Recycled . | . . . . . . Retrieved Matter . | . . . . . . Parts Self-Destructed . | . . . . . . Prevented . | . . . . . . Kills | -11 -10 -10 -10 -9 -8 ------- Run | Yrd Mat Min Exi Min Mat Combat Hostiles Destroyed 19 | . . . . . 19 Guns 17 | . . . . . 17 AOE 2 | . . . . . 2 Classes Destroyed 7 | . . . . . 7 Worker 3 | . . . . . 3 Builder 1 | . . . . . 1 Hauler 2 | . . . . . 2 Swarmer 8 | . . . . . 8 Grunt 7 | . . . . . 7 Sentry 3 | . . . . . 3 Hunter 1 | . . . . . 1 Best Kill Streak 6 | . . . . . 6 Combat Bots Only 6 | . . . . . 6 Max Kills in Single Turn 2 | . . . . . 2 Gunslinging 1 | . . . . . 1 Exploded 2 | . . . . . 2 Melee . | . . . . . . Uniques/NPCs Destroyed . | . . . . . . Combat | -11 -10 -10 -10 -9 -8 -------- Run | Yrd Mat Min Exi Min Mat Hostile Shots Fired 306 | . 9 . . . 297 Missed 72 | . 4 . . . 68 Damage Taken 2863 | . 54 . 131 . 2678 Core 598 | . 10 . 36 . 552 Absorbed by Shields 92 | . . . . . 92 Core Remaining (%) 90 | 100 . . . 81 . Volleys Fired 111 | . . . 15 . 96 Largest 2 | . . . 2 . 2 Hottest 55 | . . . 50 . 55 Shots Fired 208 | . . . 30 . 178 Gun 192 | . . . 17 . 175 Cannon . | . . . . . . Launcher 16 | . . . 13 . 3 Special . | . . . . . . Kinetic 192 | . . . 17 . 175 Thermal . | . . . . . . Explosive 16 | . . . 13 . 3 Electromagnetic . | . . . . . . Robot Hit Streak 12 | . . . . . 12 Robot Miss Streak 4 | . . . . . 4 Penetration Max 1 | . . . . . 1 Secondary Targets 4 | . . . . . 4 Max Gunslinging Chain 1 | . . . . . 1 Shots Hit Robots 131 | . . . . . 131 Core Hits 54 | . . . . . 54 Critical Kills 1 | . . . . . 1 Critical Parts Destroyed . | . . . . . . Critical Strikes 1 | . . . . . 1 Destroy 1 | . . . . . 1 Melee Attacks . | . . . . . . Impact . | . . . . . . Slashing . | . . . . . . Piercing . | . . . . . . Sneak Attacks . | . . . . . . Combat Hostiles . | . . . . . . Follow-up Attacks . | . . . . . . Damage Inflicted 1835 | . . . . . 1835 Guns 1732 | . . . . . 1732 Cannons . | . . . . . . Explosions 95 | . . . . . 95 Melee . | . . . . . . Ramming 8 | . . . . . 8 Kinetic 1732 | . . . . . 1732 Thermal . | . . . . . . Explosive 95 | . . . . . 95 Electromagnetic . | . . . . . . Impact . | . . . . . . Slashing . | . . . . . . Piercing . | . . . . . . Highest Corruption . | . . . . . . Average Corruption . | . . . . . . Corruption Purged . | . . . . . . Corruption Blocked . | . . . . . . Overload Shots . | . . . . . . Overflow Damage 7 | . . . . . 7 Projectiles . | . . . . . . Explosions 7 | . . . . . 7 Melee . | . . . . . . Knockbacks . | . . . . . . Impact . | . . . . . . Kinetic . | . . . . . . Secondary . | . . . . . . Self-Inflicted Damage 179 | . . . 134 . 45 Shots 9 | . . . 7 . 2 Rammed 2 | . . . . . 2 Targets Rammed 2 | . . . . . 2 Kicked . | . . . . . . Crushed . | . . . . . . Highest Temperature 20 | . . . 20 . 11 Average Temperature 7 | . . . 8 . 5 Received Heat Transfer 785 | . 30 . . . 755 Siege Activations . | . . . . . . Robots Corrupted . | . . . . . . Combat Hostiles . | . . . . . . Parts Fried . | . . . . . . Impact Corruptions . | . . . . . . Robots Melted . | . . . . . . Combat Hostiles . | . . . . . . Parts Melted . | . . . . . . Heat Transferred . | . . . . . . Parts Sabotaged . | . . . . . . Parts Stolen . | . . . . . . Parts Stripped . | . . . . . . Power Chain Reactions . | . . . . . . Alert | -11 -10 -10 -10 -9 -8 ------- Run | Yrd Mat Min Exi Min Mat Peak Influence 266 | . . . . . 266 Initial . | . . . . . . Average 94 | . . . . . 126 Maximum Alert Level 1 | . . . . . 1 Low Security (%) 89 | 100 100 100 . 100 86 Level 1 10 | . . . . . 13 Level 2 . | . . . . . . Level 3 . | . . . . . . Level 4 . | . . . . . . Level 5 . | . . . . . . High Security . | . . . . . . Max Security . | . . . . . . Squads Dispatched 2 | . . . . . 2 Investigation . | . . . . . . Extermination . | . . . . . . Reinforcement 2 | . . . . . 2 Assault . | . . . . . . Garrison . | . . . . . . Intercept . | . . . . . . Searches Triggered . | . . . . . . Construction Impeded . | . . . . . . Haulers Reinforced . | . . . . . . Active Scanning Responses . | . . . . . . Cargo Convoy Interrupts . | . . . . . . Stealth | -11 -10 -10 -10 -9 -8 --------- Run | Yrd Mat Min Exi Min Mat Distress Signals 2 | . 1 . . . 1 Communications Jammed . | . . . . . . Distress Signals . | . . . . . . Times Spotted 36 | . 5 . . . 31 Peak Tracking Total 10 | . 5 . . . 10 Tactical Retreats 2 | . . . . . 2 Traps | -11 -10 -10 -10 -9 -8 ------- Run | Yrd Mat Min Exi Min Mat Traps Triggered . | . . . . . . Indirectly . | . . . . . . Trap Hack Attempts . | . . . . . . Triggered . | . . . . . . Disarmed . | . . . . . . Reprogrammed . | . . . . . . Reused . | . . . . . . Traps Extracted . | . . . . . . Installed . | . . . . . . Triggered . | . . . . . . Machines | -11 -10 -10 -10 -9 -8 ---------- Run | Yrd Mat Min Exi Min Mat Machines Disabled 6 | . . . 6 . . Max in Single Turn 2 | . . . 2 . . Machines Repaired . | . . . . . . Machines Dismantled . | . . . . . . Machines Sabotaged . | . . . . . . Overloaded Fab Kills . | . . . . . . Hacking | -11 -10 -10 -10 -9 -8 --------- Run | Yrd Mat Min Exi Min Mat Machines Accessed . | . . . . . . Terminals . | . . . . . . Fabricators . | . . . . . . Repair Stations . | . . . . . . Recycling Units . | . . . . . . Scanalyzers . | . . . . . . Garrison Access . | . . . . . . Total Hacks . | . . . . . . Successful . | . . . . . . Failed . | . . . . . . Catastrophic . | . . . . . . Database Lockouts . | . . . . . . Manual . | . . . . . . Terminals . | . . . . . . Fabricators . | . . . . . . Repair Stations . | . . . . . . Recycling Units . | . . . . . . Scanalyzers . | . . . . . . Garrison Access . | . . . . . . Terminal Hacks . | . . . . . . Fabricator Hacks . | . . . . . . Repair Station Hacks . | . . . . . . Recycling Unit Hacks . | . . . . . . Scanalyzer . | . . . . . . Garrison Access Hacks . | . . . . . . Unauthorized Hacks . | . . . . . . Terminals . | . . . . . . Fabricators . | . . . . . . Repair Stations . | . . . . . . Recycling Units . | . . . . . . Scanalyzers . | . . . . . . Garrison Access . | . . . . . . Data Cores Recovered . | . . . . . . Used . | . . . . . . Hacking Detections . | . . . . . . Full Trace Events . | . . . . . . Feedback Events . | . . . . . . Feedback Blocked . | . . . . . . Robot Schematics Acquired . | . . . . . . Robots Built . | . . . . . . Authchips . | . . . . . . Time . | . . . . . . Total Robot Build Rating . | . . . . . . Part Schematics Acquired . | . . . . . . Parts Built . | . . . . . . Authchips . | . . . . . . Time . | . . . . . . Total Part Build Rating . | . . . . . . Parts Repaired . | . . . . . . Time . | . . . . . . Parts Recycled . | . . . . . . Recycled Matter . | . . . . . . Retrieved Matter . | . . . . . . Retrieved Components . | . . . . . . Parts Scanalyzed . | . . . . . . Part Schematics Acquired . | . . . . . . Parts Damaged . | . . . . . . Bothacking | -11 -10 -10 -10 -9 -8 ------------ Run | Yrd Mat Min Exi Min Mat Used RIF Installer . | . . . . . . Robots Hacked . | . . . . . . Non-combat . | . . . . . . Combat . | . . . . . . Robot Hacks Applied . | . . . . . . Relay Couplers Released . | . . . . . . Fabnet Peak Effective % . | . . . . . . Robots Rewired . | . . . . . . Allies Hacked . | . . . . . . Hacks Repelled . | . . . . . . Allies | -11 -10 -10 -10 -9 -8 -------- Run | Yrd Mat Min Exi Min Mat Total Allies . | . . . . . . Largest Group . | . . . . . . Highest-Rated Group . | . . . . . . Highest-Rated Ally . | . . . . . . Total Orders . | . . . . . . Ally Attacks . | . . . . . . Total Damage . | . . . . . . Kills . | . . . . . . Allies Corrupted . | . . . . . . Allies Melted . | . . . . . . Intel | -11 -10 -10 -10 -9 -8 ------- Run | Yrd Mat Min Exi Min Mat Robot Analysis Total . | . . . . . . Derelict Logs Recovered 1 | . . . . 1 . Drone Launches . | . . . . . . Drone Recoveries . | . . . . . . Exploration | -11 -10 -10 -10 -9 -8 ------------- Run | Yrd Mat Min Exi Min Mat Turns Passed 2609 | 69 111 31 1009 198 1191 Spaces Moved 1212 | 45 58 17 508 102 482 Core 14 | 7 . . . . 7 Treads 437 | . . . . . 437 Legs 761 | 38 58 17 508 102 38 Wheels . | . . . . . . Hover . | . . . . . . Flight . | . . . . . . Fastest Speed 50 | 50 120 190 190 190 160 Average Speed 179 | 109 183 190 190 190 172 Slowest Speed 500 | 120 190 190 190 190 500 Overloaded Moves . | . . . . . . Propulsion Burnouts . | . . . . . . Robots Hopped . | . . . . . . Cave-ins Triggered . | . . . . . . Exploration Rate (%) 32 | 3 24 11 91 29 35 Regions Visited 5 Branch Regions 3 Pre-discovered Areas 1 | . . . . 1 . Known Exits Taken . | . . . . . . Unknown Exits Taken 5 | 1 1 1 1 1 . Scrap Searched 2 | . . . . 2 . Spaces Dug 14 | . . . 14 . . Terrain Destroyed 189 | . . . 163 . 26 Melee . | . . . . . . Projectile . | . . . . . . AOE 189 | . . . 163 . 26 Terrain Rammed . | . . . . . . Walls Destroyed . | . . . . . . Machines Disabled . | . . . . . . Actions | -11 -10 -10 -10 -9 -8 --------- Run | Yrd Mat Min Exi Min Mat Total 1458 | 62 62 16 525 107 686 Wait 75 | 10 . . . 4 61 Move 1207 | 44 57 16 507 101 482 Hop . | . . . . . . Pick Up 23 | 2 2 . 2 2 15 Fast Attach 18 | 6 2 . . . 10 Attach 12 | . . . . . 12 Detach 3 | . 1 . . . 2 Swap 5 | . . . 1 . 4 Drop 2 | . . . . . 2 Fire 111 | . . . 15 . 96 Melee . | . . . . . . Ram . | . . . . . . Kick . | . . . . . . Crush 2 | . . . . . 2 Escape Stasis . | . . . . . . Rewire . | . . . . . . Trap . | . . . . . . Miscellaneous . | . . . . . . Route ------- -11/Scrapyard -10/Materials -10/Mines -10/Exiles (discovered 2 exits: [*Min x2]) -9/Mines -8/Materials History --------- Turn | Location | Event 5 | -11/Scrapyard | Discovered new exit (range 16) 70 | -11/Scrapyard | Entered Materials 156 | -10/Materials | Discovered new exit (range 13) 181 | -10/Materials | Entered Mines 202 | -10/Mines | Deemed a non-threat by the Exiles lab entrance 204 | -10/Mines | Discovered new exit (range 5) 212 | -10/Mines | Entered Exiles 212 | -10/Exiles | Found Exiles lab abandoned 237 | -10/Exiles | Discovered new exit (range 15) 305 | -10/Exiles | Build established: Mutant 1200 | -10/Exiles | Discovered new exit (range 12) 1221 | -10/Exiles | Entered Mines 1370 | -9/Mines | Learned location of Zion (-6) 1392 | -9/Mines | Assembled infested the area 1397 | -9/Mines | Assisted by a Guerilla fighting off Assembled 1397 | -9/Mines | Discovered new exit (range 13) 1419 | -9/Mines | Entered Materials 1419 | -8/Materials | Evolved 4 slots: Propulsion x1, Utility x3 1555 | -8/Materials | Lost 3 parts (2n1w) 1876 | -8/Materials | Core integrity fell below 50% 1927 | -8/Materials | Core integrity fell below 20% 1966 | -8/Materials | Lost 12 parts (3p4n1u4w) 2248 | -8/Materials | Build established: Scavenger-Mutant 2610 | -8/Materials | Destroyed by X-57 Shotgunner with High-powered Shotgun Last Messages --------------- Slug penetrates Wall. Y-45 Defender destroyed. Acquired 59 matter. Acquired Lgt. Treads. Acquired Assault Rifle. Dropped Assault Rifle. Acquired Assault Rifle. Dropped Lgt. Assault Rifle. Acquired Autogun. K-01 Serf collects debris. Slug penetrates A-02 Transporter. U-05 Engineer destroyed. A-02 Transporter destroyed. K-01 Serf collects debris. ALERT: Suspicious intruders detected, dispatching Specialist reinforcements to area. Slug penetrates A-02 Transporter. Slug penetrates X-57 Shotgunner. Slug penetrates Wall. Slug penetrates X-57 Shotgunner. Map ----- +----------------------------------------------------+ | ??# # #?# ## #??#! /] #??????? | | ??# ##########?# ######+###############+######### | | ??# # ! #???# #???# | | ??# # #???#=##### | | ??# + """ #???#== | | ??# # """ #???#]######+########+################ | | ??# # """ !#???#%#?# #?# #???????# | | ??#! # #???#=#?# """ #?# """ "" #???????# | | ??#! ############=#?# """ #?# """ ""S ????????# | | ??# [+ ##=#?# """ #?# """ "" #???????# | | ??# # ## #?# #?# #???????# | | ??# # """ ## #?# """ #?# *[ #???????# | | ??# #// """ ## #?# """ #?#! *! ????????# | | ??# #/ [ """ ## #?# "???#?# ?* ????????# | | ??# #/[ ## #?# ????#######????#???????# | | ??# # ## ############"#?????????????????# | | ??# # !## #####?????????????# | | ??# ############### ##### w ??????????????? | | ??# #?????????????# #???? ! ???????????????? | | ??# #?????????????# #???? ????????????????? | | ??# #?????????????# ###?? #?????????????????? | | ?## ###############+##;### #??????????????????? | | ?# # ] # # #??????????????????? | | ?# # # # #??????????????????? | | ?# + # x #??????????????????? | | ?# # """ # @; #??????????????????? | | ?## ## """""# ; #??????????????????? | | ??# ## """""###########; #??????????????????? | | ??# ## [ """""#??????????# H +?????????????????? | | ??# ## """ #??????????# ##?????????????????? | | ??# ## #??????????# #??????????????????? | | ??## ###########??????????# #??????????????????? | | ???# #????????????????????# #??????????????????? | | ???# #????????????????????# #??????????????????? | | ???# #????????????????????? #??????????????????? | | ???# #????????????????????? ??????????????????? | | ?### ###??????????????????? ??????????????????? | | ?# #???????????????????= ??????????????????? | | ?# #??????????????????? ??????????????????? | | ?# #??????????????????? #?????????????????? | | ?# #???????????????????###???????????????????? | | ?# #?????????????????????????????????????????? | | ?###+###?????????????????????????????????????????? | | # #?????????????????????????????????????????? | | # #?????????????????????????????????????????? | | # """ #?????????????????????????????????????????? | | # """ #?????????????????????????????????????????? | | # """ #?????????????????????????????????????????? | | # #?????????????????????????????????????????? | | ########?????????????????????????????????????????? | +----------------------------------------------------+ Best States ------------- Heat Dissipation 45 Energy Generation 14 Energy Capacity 265 Matter Stores 300 Matter Capacity 300 Sight Range 16 Terrain Scan Density 10 Armor Coverage 150 Evasion (%) 50 Targeting Accuracy 10 Recoil Reduction 3 Item Schematics ----------------- None Robot Schematics ------------------ None Fabricated ------------ Nothing Alien Tech Used ----------------- None Achievements -------------- None Challenges ------------ None Game ------ Seed PiercingLobotomyRail Manual? 0 Play Time 00:15:42 Cumulative 256.8 hours Start 2024.08.28 @ 18:11:34 End 2024.08.28 @ 18:36:11 Sessions 1 Manual Loads 0 Difficulty Rogue Special Mode None Game No. 484 Rogue 482 Adventurer 2 Explorer 0 Win Type - Total 14 Types 11/0/1/2/0/0/0/0/0 Lore% 74 Gallery% 68 Achievement% 57 Wizard Run 0 Options --------- Layout 0 ASCII 0 Keyboard 1 Movement Numpad Keybinds 1 Fullscreen 2 Font 18/SmallcapsGlow Map View 76x50 Zoom Use 0% Tactical HUD 1 Map Filters NONE Filters NONE Steam 1 RUN: be9ea9b6-b34b-44ea-8340-a0bc372c4996